Cogmind - Beta 15 @@@ ROGUE MODE // 2025.05.27 @ 22:31:14 Player: Yvonne Result: Destroyed by Y-45 Defender with Beam Rifle Performance ------------- Evolutions (2) 1000 Regions Visited (4) 800 Robots Destroyed (50) 250 Value Destroyed (1302) 1302 Prototype IDs (0) 0 Alien Tech Used (0) 0 Bonus (0) 0 TOTAL SCORE: 3352 Bonus ------- None Cogmind --------- Core Integrity 0/550 Matter 10/300 Energy 265/265 System Corruption 0% Temperature Cool (9) Movement Core (800) Ox15 Location -8/Materials Parts ------- > --- POWER (2) -------- Improved Ion Engine > --- PROPULSION (3) --- (None) > --- UTILITY (3) ------ High-capacity Storage Unit Utility Shielding > --- WEAPON (3) ------- (None) > --- INVENTORY (20) --- Aluminum Leg Heat Sink Improved Heat Sink Huge Storage Unit Small Battery (100) Large Matter Pod (114) Transport Network Coupler Kinecellerator Kinecellerator Power Shielding System Restoration Module Mini Grenade Launcher Datajack Peak State ------------ > --- POWER ------------ Light Ion Engine Light Nuclear Core > --- PROPULSION ------- Aluminum Leg Aluminum Leg Aluminum Leg > --- UTILITY ---------- High-capacity Storage Unit Sensor Array System Restoration Module > --- WEAPON ----------- Light Assault Rifle Light Assault Rifle Light Cannon > --- INVENTORY -------- Ion Engine Aluminum Leg Heat Sink Improved Heat Sink Huge Storage Unit Small Battery Medium Matter Pod Large Matter Pod Transport Network Coupler Energy Filter Kinecellerator Kinecellerator Power Shielding System Restoration Module Tractor Beam Light Assault Rifle Autogun Assault Cannon Grenade Launcher Rocket Launcher [Rating: 19] Favorites ----------- Power Ion Engine Engine Ion Engine Power Core Light Nuclear Core Propulsion Light Treads Treads Light Treads Leg Aluminum Leg Utility High-capacity Storage Unit Device Sensor Array Storage High-capacity Storage Unit Processor Targeting Computer Protection Light Armor Plating Weapon Light Assault Rifle Ballistic Gun Light Assault Rifle Ballistic Cannon Light Cannon Launcher Rocket Launcher Build | -11 -10 -9 -9 -8 ------- Run | Yrd Mat Mat Min Mat Slots Evolved 4 | . . 2 . 2 Power 1 | . . . . 1 Propulsion 1 | . . 1 . . Utility 1 | . . 1 . . Weapon 1 | . . . . 1 Parts Attached 43 | 6 3 5 6 23 Power 8 | 1 . 1 1 5 Engine 7 | 1 . 1 1 4 Core 1 | . . . . 1 Reactor . | . . . . . Propulsion 10 | 2 . . 2 6 Treads 6 | 2 . . . 4 Leg 4 | . . . 2 2 Wheel . | . . . . . Hover . | . . . . . Flight . | . . . . . Utility 13 | 1 3 2 2 5 Device 4 | . 1 1 1 1 Storage 3 | 1 2 . . . Processor 1 | . . . 1 . Hackware . | . . . . . Protection 5 | . . 1 . 4 Artifact . | . . . . . Weapon 12 | 2 . 2 1 7 Energy Gun . | . . . . . Energy Cannon . | . . . . . Ballistic Gun 8 | 2 . 1 1 4 Ballistic Cannon 2 | . . 1 . 1 Launcher 2 | . . . . 2 Special Weapon . | . . . . . Impact Weapon . | . . . . . Slashing Weapon . | . . . . . Piercing Weapon . | . . . . . Special Melee Weapon . | . . . . . Unidentified Prototypes . | . . . . . Parts Lost 31 | . . 5 . 26 Power 5 | . . 1 . 4 Propulsion 9 | . . 1 . 8 Utility 6 | . . 2 . 4 Weapon 11 | . . 1 . 10 Highest Loss Streak 9 | . . 4 . 9 To Critical Strikes . | . . . . . Average Backups 15 | 4 12 18 16 17 Power 1 | . 1 2 1 . Propulsion 2 | 2 4 4 2 1 Utility 7 | . 4 7 9 11 Weapon 3 | . 2 4 3 4 Tool/Special . | . . . . . Unused Backups 18 | . . 2 . 16 Power 1 | . . 1 . . Propulsion 2 | . . . . 2 Utility 12 | . . . . 12 Weapon 2 | . . 1 . 1 Tool/Special 1 | . . . . 1 Average Slot Usage (%) 91 | . 98 83 99 84 Engine 11 | . 14 9 10 11 Treads 17 | . 28 20 11 7 Leg 7 | . . . 21 13 Device 12 | . 10 18 11 9 Storage 12 | . 16 11 11 9 Processor 2 | . . . 10 . Protection 2 | . . 1 . 6 Ballistic Gun 19 | . 28 20 11 16 Ballistic Cannon 3 | . . 1 11 5 Peak Build Rating 19 | 6 8 11 11 19 Average Rating 10 | 5 7 9 10 15 On Entrance 6 | . 6 8 8 11 Naked Turns . | . . . . . Heaviest Build 64 | 13 53 52 48 64 Greatest Support 60 | 40 40 40 20 60 Greatest Overweight (x) 16 | . 1 2 2 16 Average Overweight (x) 1 | . . 1 2 1 Largest Inventory Capacity 20 | 8 20 20 20 20 Average Capacity 19 | 7 18 20 20 20 Most Carried 20 | 6 16 20 20 20 Average Carried 15 | 4 12 18 16 17 Final Capacity 20 | 8 20 20 20 20 Final Carried 20 | 6 16 20 19 13 Class Distribution -------------------- 77% | Mutant 7% | Scavenger-Skirmisher 5% | Scavenger-Tank 3% | Skirmisher Dominant Class ---------------- Mutant | -10/Materials Mutant | -9/Materials Mutant | -9/Mines Scavenger-Skirmisher | -8/Materials Resources | -11 -10 -9 -9 -8 ----------- Run | Yrd Mat Mat Min Mat Matter Collected 1421 | 219 103 370 77 652 Remotely 115 | . 20 95 . . Salvage Created 1279 | . 36 363 19 861 Parts 94 | . 7 20 5 62 Haulers Intercepted 2 | . . 2 . . Recyclers Shooed 3 | . 1 1 . 1 Parts Field Recycled . | . . . . . Retrieved Matter . | . . . . . Parts Self-Destructed . | . . . . . Prevented . | . . . . . Kills | -11 -10 -9 -9 -8 ------- Run | Yrd Mat Mat Min Mat Combat Hostiles Destroyed 36 | . 3 8 3 22 Guns 22 | . 3 7 1 11 Cannons 8 | . . 1 2 5 AOE 6 | . . . . 6 Classes Destroyed 11 | . 1 3 . 7 Worker 2 | . . . . 2 Builder 4 | . . . . 4 Tunneler 1 | . . . . 1 Hauler 2 | . . 2 . . Recycler 1 | . . . . 1 Operator 1 | . . . . 1 Watcher 3 | . . . . 3 Swarmer 12 | . 3 2 3 4 Grunt 15 | . . 5 . 10 Brawler 1 | . . 1 . . Sentry 8 | . . . . 8 Best Kill Streak 12 | . 3 4 3 12 Combat Bots Only 6 | . 3 3 3 6 Max Kills in Single Turn 3 | . 1 1 1 3 Gunslinging . | . . . . . Exploded 3 | . . . . 3 Melee . | . . . . . Uniques/NPCs Destroyed . | . . . . . Combat | -11 -10 -9 -9 -8 -------- Run | Yrd Mat Mat Min Mat Hostile Shots Fired 375 | . 20 86 27 242 Missed 90 | . 5 22 5 58 Hits 285 | . 15 64 22 184 Melee 6 | . . 6 . . Projectile 279 | . 15 58 22 184 Critical Strikes 9 | . . . . 9 Damage Taken 4008 | . 110 813 186 2899 Core 775 | . 9 162 41 563 Absorbed by Shields . | . . . . . Redirected to Shielding 31 | . . . . 31 Regen/Repaired (Parts) 96 | . . . . 96 Core Remaining (%) 81 | 100 96 . 49 . Volleys Fired 152 | . 8 42 7 95 Largest 3 | . 2 2 2 3 Hottest 79 | . 40 53 50 79 Shots Fired 305 | . 16 85 15 189 Gun 217 | . 16 81 7 113 Cannon 58 | . . 4 8 46 Launcher 30 | . . . . 30 Special . | . . . . . Kinetic 275 | . 16 85 15 159 Thermal . | . . . . . Explosive 30 | . . . . 30 Electromagnetic . | . . . . . Robot Hit Streak 12 | . 3 8 5 12 Robot Miss Streak 5 | . 3 5 2 4 Penetration Max . | . . . . . Secondary Targets 2 | . 1 1 . . Max Gunslinging Chain 1 | . 1 1 . . Shots Hit Robots 176 | . 8 49 8 111 Core Hits 105 | . 4 18 4 79 Critical Kills 2 | . . 1 . 1 Critical Parts Destroyed . | . . . . . Critical Strikes 4 | . . 1 . 3 Destroy 2 | . . 1 . 1 Blast 2 | . . . . 2 Melee Attacks . | . . . . . Impact . | . . . . . Slashing . | . . . . . Piercing . | . . . . . Sneak Attacks . | . . . . . Combat Hostiles . | . . . . . Follow-up Attacks . | . . . . . Damage Inflicted 3577 | . 79 691 115 2692 Guns 1529 | . 79 613 30 807 Cannons 682 | . . 69 84 529 Explosions 1341 | . . . . 1341 Melee . | . . . . . Ramming 25 | . . 9 1 15 Kinetic 2211 | . 79 682 114 1336 Thermal . | . . . . . Explosive 1341 | . . . . 1341 Electromagnetic . | . . . . . Impact . | . . . . . Slashing . | . . . . . Piercing . | . . . . . Highest Corruption 4 | . . 4 4 . Average Corruption 4 | . . 4 4 . Corruption Purged . | . . . . . Corruption Blocked . | . . . . . Effects 21 | . . 4 17 . Message Errors 5 | . . . 5 . Matter Fused 6 | . . 2 4 . Heat Flow Errors 3 | . . 1 2 . Energy Discharges 3 | . . . 3 . Data Loss (minor) 2 | . . . 2 . Misfires 2 | . . 1 1 . Overload Shots . | . . . . . Overflow Damage 23 | . . . . 23 Projectiles 16 | . . . . 16 Explosions 7 | . . . . 7 Melee . | . . . . . Knockbacks 6 | . . 1 . 5 Impact . | . . . . . Kinetic 6 | . . 1 . 5 Secondary . | . . . . . Self-Inflicted Damage . | . . . . . Shots . | . . . . . Rammed 4 | . . 3 . 1 Targets Rammed 7 | . . 3 1 3 Kicked 1 | . . . 1 . Crushed 2 | . . . . 2 Highest Temperature 305 | . . 186 206 305 Average Temperature 66 | . . 49 71 71 Received Heat Transfer 1692 | . . 297 . 1395 Effects 1 | . . . . 1 Interference 1 | . . . . 1 Siege Activations . | . . . . . Martial Activations . | . . . . . Shielding Activations . | . . . . . Robots Disrupted . | . . . . . Combat Hostiles . | . . . . . Robots Corrupted . | . . . . . Combat Hostiles . | . . . . . Parts Fried . | . . . . . Impact Corruptions . | . . . . . Robots Melted . | . . . . . Combat Hostiles . | . . . . . Parts Melted . | . . . . . Heat Transferred . | . . . . . Parts Sabotaged . | . . . . . Parts Stolen . | . . . . . Parts Stripped . | . . . . . Power Chain Reactions . | . . . . . Alert | -11 -10 -9 -9 -8 ------- Run | Yrd Mat Mat Min Mat Maximum Alert Level 1 | . . . . 1 Low Security (%) 93 | 100 100 100 100 75 Level 1 6 | . . . . 24 Level 2 . | . . . . . Level 3 . | . . . . . Level 4 . | . . . . . Level 5 . | . . . . . High Security . | . . . . . Max Security . | . . . . . Peak Influence 326 | . 60 70 62 326 Initial 12 | . . . 12 . Average 26 | . 3 18 7 80 Influence Increases 1094 | . 72 235 70 717 Destroy 0b10 Robot/C 720 | . 60 160 60 440 Destroy 0b10 Robot/NC 70 | . . 10 . 60 Destroy Leader 170 | . 10 34 10 116 Successful Hack 6 | . 2 . . 4 Destroy Structure 83 | . . 1 . 82 Lose Combat Pursuer 45 | . . 30 . 15 Influence Decreases 831 | . 72 203 102 454 Entered New Map 20 | . . . 20 . Time Decay 549 | . 72 163 82 232 Lost Part 262 | . . 40 . 222 Squads Dispatched 9 | . 1 1 . 7 Investigation . | . . . . . Extermination . | . . . . . Reinforcement 4 | . 1 1 . 2 Assault . | . . . . . Garrison 5 | . . . . 5 Intercept . | . . . . . Searches Triggered . | . . . . . Construction Impeded 1 | . . . . 1 Haulers Reinforced . | . . . . . Active Scanning Responses . | . . . . . Cargo Convoy Interrupts . | . . . . . Stealth | -11 -10 -9 -9 -8 --------- Run | Yrd Mat Mat Min Mat Distress Signals 7 | . 1 1 . 5 Communications Jammed . | . . . . . Distress Signals . | . . . . . Times Spotted 63 | . 5 15 3 40 Peak Tracking Total 9 | . 4 6 3 9 Tactical Retreats 3 | . . 2 . 1 Traps | -11 -10 -9 -9 -8 ------- Run | Yrd Mat Mat Min Mat Traps Triggered . | . . . . . Indirectly . | . . . . . Trap Hack Attempts . | . . . . . Triggered . | . . . . . Disarmed . | . . . . . Reprogrammed . | . . . . . Reused . | . . . . . Traps Extracted . | . . . . . Installed . | . . . . . Triggered . | . . . . . Machines | -11 -10 -9 -9 -8 ---------- Run | Yrd Mat Mat Min Mat Machines Disabled . | . . . . . Max in Single Turn . | . . . . . Machines Repaired . | . . . . . Machines Dismantled . | . . . . . Machines Sabotaged . | . . . . . Overloaded Fab Kills . | . . . . . Hacking | -11 -10 -9 -9 -8 --------- Run | Yrd Mat Mat Min Mat Machines Accessed 4 | . 2 . . 2 Terminals 1 | . 1 . . . Fabricators . | . . . . . Repair Stations 1 | . . . . 1 Recycling Units 1 | . 1 . . . Scanalyzers 1 | . . . . 1 Garrison Access . | . . . . . Total Hacks 9 | . 2 . . 7 Successful 9 | . 2 . . 7 Failed . | . . . . . Catastrophic . | . . . . . Database Lockouts . | . . . . . Manual . | . . . . . Terminals 1 | . 1 . . . Fabricators . | . . . . . Repair Stations 4 | . . . . 4 Recycling Units 1 | . 1 . . . Scanalyzers 3 | . . . . 3 Garrison Access . | . . . . . Terminal Hacks 1 | . 1 . . . Record 1 | . 1 . . . Fabricator Hacks . | . . . . . Repair Station Hacks 4 | . . . . 4 Scan Component 2 | . . . . 2 Repair 2 | . . . . 2 Recycling Unit Hacks 1 | . 1 . . . Report Inventory 1 | . 1 . . . Scanalyzer 3 | . . . . 3 Insert Component 1 | . . . . 1 Analyze 2 | . . . . 2 Garrison Access Hacks . | . . . . . Unauthorized Hacks . | . . . . . Terminals . | . . . . . Fabricators . | . . . . . Repair Stations . | . . . . . Recycling Units . | . . . . . Scanalyzers . | . . . . . Garrison Access . | . . . . . Data Cores Recovered . | . . . . . Used . | . . . . . Hacking Detections 3 | . 1 . . 2 Full Trace Events 1 | . . . . 1 Feedback Events . | . . . . . Feedback Blocked . | . . . . . Robot Schematics Acquired . | . . . . . Robots Built . | . . . . . Authchips . | . . . . . Time . | . . . . . Total Robot Build Rating . | . . . . . Part Schematics Acquired 1 | . . . . 1 Parts Built . | . . . . . Authchips . | . . . . . Time . | . . . . . Total Part Build Rating . | . . . . . Parts Repaired 2 | . . . . 2 Time 52 | . . . . 52 Parts Recycled . | . . . . . Recycled Matter . | . . . . . Retrieved Matter . | . . . . . Retrieved Components . | . . . . . Parts Scanalyzed 1 | . . . . 1 Part Schematics Acquired 1 | . . . . 1 Parts Damaged . | . . . . . Bothacking | -11 -10 -9 -9 -8 ------------ Run | Yrd Mat Mat Min Mat Used RIF Installer . | . . . . . Robots Hacked . | . . . . . Non-combat . | . . . . . Combat . | . . . . . Robot Hacks Applied . | . . . . . Relay Couplers Released . | . . . . . Fabnet Peak Effective % . | . . . . . Robots Rewired . | . . . . . Allies Hacked . | . . . . . Hacks Repelled . | . . . . . Allies | -11 -10 -9 -9 -8 -------- Run | Yrd Mat Mat Min Mat Total Allies . | . . . . . Largest Group . | . . . . . Highest-Rated Group . | . . . . . Highest-Rated Ally . | . . . . . Total Orders . | . . . . . Ally Attacks . | . . . . . Total Damage . | . . . . . Kills . | . . . . . Allies Corrupted . | . . . . . Allies Melted . | . . . . . Intel | -11 -10 -9 -9 -8 ------- Run | Yrd Mat Mat Min Mat Active Infowar (turns) 2226 | . . 935 769 522 Sensors 2226 | . . 935 769 522 Robot Analysis Total . | . . . . . Derelict Logs Recovered 1 | . . . 1 . Drone Launches . | . . . . . Drone Recoveries . | . . . . . Exploration | -11 -10 -9 -9 -8 ------------- Run | Yrd Mat Mat Min Mat Turns Passed 4051 | 181 1151 935 769 1015 Spaces Moved 1379 | 55 469 309 279 267 Core 14 | 13 . . . 1 Treads 916 | 42 469 309 . 96 Legs 449 | . . . 279 170 Wheels . | . . . . . Hover . | . . . . . Flight . | . . . . . Fastest Speed 50 | 50 160 240 260 160 Average Speed 237 | 134 229 249 260 233 Slowest Speed 850 | 160 240 320 260 850 Overloaded Moves . | . . . . . Propulsion Burnouts . | . . . . . Robots Hopped . | . . . . . Potential Cave-ins . | . . . . . Cave-ins Triggered . | . . . . . Exploration Rate (%) 34 | 6 62 26 53 26 Regions Visited 4 Branch Regions 1 Pre-discovered Areas . | . . . . . Known Exits Taken . | . . . . . Unknown Exits Taken 4 | 1 1 1 1 . Scrap Searched 1 | . . . 1 . Spaces Dug . | . . . . . Terrain Destroyed 89 | . . . . 89 Melee . | . . . . . Projectile 2 | . . . . 2 AOE 87 | . . . . 87 Terrain Rammed . | . . . . . Walls Destroyed . | . . . . . Machines Disabled . | . . . . . Actions | -11 -10 -9 -9 -8 --------- Run | Yrd Mat Mat Min Mat Total 1906 | 162 527 395 309 513 Wait 259 | 90 38 22 9 100 Move 1375 | 54 468 308 278 267 Hop . | . . . . . Pick Up 51 | 12 10 11 5 13 Fast Attach 10 | . 1 . . 9 Attach 26 | 6 . 3 4 13 Detach . | . . . . . Swap 13 | . 2 2 3 6 Drop 13 | . . 4 2 7 Fire 152 | . 8 42 7 95 Melee . | . . . . . Ram . | . . . . . Kick 1 | . . . 1 . Crush 6 | . . 3 . 3 Escape Stasis . | . . . . . Rewire . | . . . . . Trap . | . . . . . Miscellaneous . | . . . . . Route ------- -11/Scrapyard -10/Materials (discovered 4 exits: *Mat x2 / [*Min x2]) -9/Materials -9/Mines -8/Materials History --------- Turn | Location | Event 4 | -11/Scrapyard | Discovered new exit (range 15) 182 | -11/Scrapyard | Entered Materials 183 | -10/Materials | Met a group of wandering Federalists 296 | -10/Materials | Discovered new exit (range 16) 308 | -10/Materials | Build established: Mutant 332 | -10/Materials | Discovered new exit (range 11) 528 | -10/Materials | Discovered new exit (range 7) 794 | -10/Materials | Discovered new exit (range 8) 1333 | -10/Materials | Entered another Materials area 1333 | -9/Materials | Evolved 2 slots: Propulsion x1, Utility x1 2165 | -9/Materials | Lost 4 parts (1p1n1u1w) 2231 | -9/Materials | Discovered new exit (range 8) 2268 | -9/Materials | Entered Mines 2806 | -9/Mines | Core integrity fell below 50% 2964 | -9/Mines | Learned Materials garrison access intel 3019 | -9/Mines | Discovered new exit (range 9) 3037 | -9/Mines | Entered Materials 3037 | -8/Materials | Evolved 2 slots: Power x1, Weapon x1 3038 | -8/Materials | Loaded intel: 1 garrison access location 3287 | -8/Materials | Repaired Lgt. Cannon 3314 | -8/Materials | Repaired Lgt. Assault Rifle 3526 | -8/Materials | Garrison activated, responded to threat 3598 | -8/Materials | Lost 3 parts (1p1n1u) 3648 | -8/Materials | Garrison activated, responded to threat 3649 | -8/Materials | Core integrity fell below 50% 3681 | -8/Materials | Lost 8 parts (1p2n1u4w) 3871 | -8/Materials | Lost 5 parts (1p2n1u1w) 3983 | -8/Materials | Garrison activated, responded to threat 3986 | -8/Materials | Core integrity fell below 20% 4052 | -8/Materials | Destroyed by Y-45 Defender with Beam Rifle Last Messages --------------- 04024_ U-05 Engineer builds a Wall. 04024_ U-05 Engineer lays Concrete. 04025_ K-01 Serf collects debris. 04025_ U-05 Engineer lays Concrete. 04026_ U-05 Engineer destroyed. 04027_ U-05 Engineer lays Concrete. 04029_ K-01 Serf collects debris. 04034_ The unstable cave ceiling collapses. 04040_ Hvy. Assault Rifle destroyed. 04040_ U-05 Engineer lays Concrete. 04041_ K-01 Serf collects debris. 04042_ W-25 Informer destroyed. 04042_ U-05 Engineer lays Concrete. 04042_ U-05 Engineer builds a Wall. 04043_ Lgt. Treads destroyed. 04044_ U-05 Engineer lays Concrete. 04049_ Grenade Launcher destroyed. 04049_ Critical hit (Burn: +37). 04049_ U-05 Engineer lays Concrete. 04051_ U-05 Engineer builds a Wall. Map ----- +----------------------------------------------------+ | ?????????????????????? # """ | | ?????????????????????? * ! [ + """ | | ?????????????????????? = # | | ?????????????????????? =[ # """ | | ???????????????????????###"" ! #!""" | | ???????????????????????##### % % #!"""[ | | ????????????????????? % # *!! | | ????????????????????########## =## ### =[[ | | ????????????????????# #???# # ####### | | ????????????????????# ###### # ## ## | | ????????????????????# + ######? | | ????????????????????# # # """ #?????? | | ????????????????????# # # G" #?????? | | ????????????????????# # a # """ #?????? | | ????????????????????# # u # #?????? | | ????????????????????# / ########?????? | | ????????????????????# Y r#????????????? | | ????????????????????# # #????????????? | | ??????????????#########= #????????????? | | ??????????????# ! |% #????????????? | | ???????????????# = #== r #????????????? | | ???????????????# "" #! #????????????? | | ???????????????# "T # #????????????? | | ???????????????# "" # u ##????????????? | | ???????????????# /#u #????????????????? | | ???????????????######## @ #????????????????? | | ???????????????????## # #????????????????? | | ???????????????????# # #????????????????? | | ???????????????????# # #????????????????? | | ??????????????????# # # #????????????????? | | ????????????????? ### #% #????????????????? | | ???????????????? ? #????????????????? | | ?????????????? ? +????????????????? | | ????????????? ? #????????????????? | | ????????????###? # # #????????????????? | | ????????????????? # ######## ##????????????????? | | ???????????????????????????# #?????????????????? | | ???????????????????????????# #?????????????????? | | ???????????????????????????# #?????????????????? | | ???????????????????????????# #?????????????????? | | ???????????????????????????? #?????????????????? | | ???????????????????????????? ??????????????????? | | ???????????????????????????? ??????????????????? | | ?????????????????????????????????????????????????? | | ?????????????????????????????????????????????????? | | ?????????????????????????????????????????????????? | | ?????????????????????????????????????????????????? | | ?????????????????????????????????????????????????? | | ?????????????????????????????????????????????????? | | ?????????????????????????????????????????????????? | +----------------------------------------------------+ Best States ------------- Heat Dissipation 31 Energy Generation 19 Energy Capacity 430 Matter Stores 300 Matter Capacity 300 Sight Range 16 Robot Scan Range 14 Terrain Scan Density 10 Armor Coverage 150 Power Shielding 33 Utility Shielding 33 Evasion (%) 50 Targeting Accuracy 5 Recoil Reduction 3 Item Schematics ----------------- Autogun | -8/Materials | Scanalyzed Robot Schematics ------------------ None Fabricated ------------ Nothing Repaired ---------- Lgt. Cannon | 55% | -8/Materials Lgt. Assault Rifle | 46% | -8/Materials Alien Tech Used ----------------- None Achievements -------------- None Challenges ------------ None Game ------ Seed LobotomyPotentialRouter Manual? 0 Play Time 00:46:41 Cumulative 14.2 hours Start 2025.05.27 @ 21:45:22 End 2025.05.27 @ 22:31:14 Sessions 1 Manual Loads 0 Difficulty Rogue Special Mode None Game No. 13 Rogue 13 Adventurer 0 Explorer 0 Win Type - Total 0 Types 0/0/0/0/0/0/0/0/0/0 Lore% 7 Gallery% 13 Achievement% 15 Wizard Run 0 Options --------- Layout 0 ASCII 0 Keyboard 0 Movement Mouse Keybinds 0 Fullscreen 2 Font 24/Smallcaps Map View 113x50 Zoom Use 0% Tactical HUD 1 Map Filters NONE Filters NONE Steam 1 RUN: 5b47f05c-7010-49ce-aff4-054692f8e48f